fUSD/lending_fUSD_20250525
["ID","MTS","AMOUNT","RATE_DAILY","PERIOD"]
[362272693,1748137843982,-420.0,0.00019999,2]
[362272694,1748137843992,-420.0,0.00019999,2]
[362272695,1748137844002,-420.0,0.00019999,2]
[362272696,1748137844011,-486.22855858,0.00019999,2]
[362272697,1748137844020,-420.0,0.00019999,2]
[362272698,1748137844030,-420.0,0.00019999,2]
[362272699,1748137844039,-420.0,0.00019999,2]
[362272700,1748137844049,-420.0,0.00019999,2]
[362272701,1748137844058,-420.0,0.00019999,2]
[362272702,1748137844067,-420.0,0.00019999,2]
[362272703,1748137844077,-420.0,0.00019999,2]
[362272704,1748137844086,-420.0,0.00019999,2]
[362272705,1748137844095,-420.0,0.00019999,2]
[362272706,1748137844104,-313.15034136,0.00019999,2]
[362272707,1748137844113,-161.45643631,0.00019999,2]
[362272708,1748137844123,-420.0,0.00019999,2]
[362272709,1748137844132,-157.70676134,0.00019999,2]
[362272710,1748137844141,-420.0,0.00019999,2]
[362272711,1748137844151,-420.0,0.00019999,2]
[362272712,1748137844160,-420.0,0.00019999,2]
[362272713,1748137844169,-420.0,0.00019999,2]
[362272714,1748137844182,-420.0,0.00019999,2]
[362272715,1748137844192,-420.0,0.00019999,2]
[362272716,1748137844201,-420.0,0.00019999,2]
[362272717,1748137844210,-420.0,0.00019999,2]
[362272718,1748137844220,-420.0,0.00019999,2]
[362272719,1748137844229,-420.0,0.00019999,2]
[362272720,1748137844239,-420.0,0.00019999,2]
[362272721,1748137844249,-420.0,0.00019999,2]
[362272722,1748137844259,-420.0,0.00019999,2]
[362272723,1748137844269,-420.0,0.00019999,2]
[362272724,1748137844278,-420.0,0.00019999,2]
[362272725,1748137844288,-420.0,0.00019999,2]
[362272726,1748137844297,-420.0,0.00019999,2]
[362272727,1748137844307,-212.93331936,0.00019999,2]
[362272728,1748137844316,-420.0,0.00019999,2]
[362272729,1748137844325,-420.0,0.00019999,2]
[362272730,1748137844335,-420.0,0.00019999,2]
[362272731,1748137844345,-420.0,0.00019999,2]
[362272732,1748137844354,-420.0,0.00019999,2]
[362272733,1748137844363,-420.0,0.00019999,2]
[362272734,1748137844373,-420.0,0.00019999,2]
[362272735,1748137844382,-420.0,0.00019999,2]
[362272736,1748137844391,-420.0,0.00019999,2]
[362272737,1748137844401,-420.0,0.00019999,2]
[362272738,1748137844410,-420.0,0.00019999,2]
[362272739,1748137844419,-420.0,0.00019999,2]
[362272740,1748137844428,-420.0,0.00019999,2]
[362272741,1748137844437,-420.0,0.00019999,2]
[362272742,1748137844447,-420.0,0.00019999,2]
[362272743,1748137844456,-420.0,0.00019999,2]
[362272744,1748137844465,-249.50562501,0.00019999,2]
[362272745,1748137844474,-420.0,0.00019999,2]
[362272746,1748137844488,-420.0,0.00019999,2]
[362272747,1748137844497,-420.0,0.00019999,2]
[362272748,1748137844507,-420.0,0.00019999,2]
[362272749,1748137844517,-420.0,0.00019999,2]
[362272750,1748137844527,-420.0,0.00019999,2]
[362272751,1748137844536,-420.0,0.00019999,2]
[362272752,1748137844547,-420.0,0.00019999,2]
[362272753,1748137844558,-420.0,0.00019999,2]
[362272754,1748137844567,-420.0,0.00019999,2]
[362272755,1748137844577,-420.0,0.00019999,2]
[362272756,1748137844588,-420.0,0.00019999,2]
[362272757,1748137844598,-420.0,0.00019999,2]
[362272758,1748137844608,-563.73409924,0.00019999,2]
[362272759,1748137844618,-420.0,0.00019999,2]
[362272760,1748137844628,-420.0,0.00019999,2]
[362272761,1748137844640,-420.0,0.00019999,2]
[362272762,1748137844651,-420.0,0.00019999,2]
[362272763,1748137844661,-420.0,0.00019999,2]
[362272764,1748137844672,-420.0,0.00019999,2]
[362272765,1748137844684,-420.0,0.00019999,2]
[362272766,1748137844696,-420.0,0.00019999,2]
[362272767,1748137844709,-420.0,0.00019999,2]
[362272768,1748137844719,-420.0,0.00019999,2]
[362272769,1748137844728,-511.43636161,0.00019999,2]
[362272770,1748137844740,-712.71,0.00019999,2]
[362272771,1748137844749,-712.71,0.00019999,2]
[362272772,1748137844759,-712.71,0.00019999,2]
[362272773,1748137844768,-712.71,0.00019999,2]
[362272774,1748137844779,-712.71,0.00019999,2]
[362272775,1748137844789,-712.71,0.00019999,2]
[362272776,1748137844799,-712.71,0.00019999,2]
[362272777,1748137844810,-712.71,0.00019999,2]
[362272778,1748137844822,-712.71,0.00019999,2]
[362272779,1748137844833,-712.71,0.00019999,2]
[362272780,1748137844843,-712.71,0.00019999,2]
[362272781,1748137844854,-712.71,0.00019999,2]
[362272782,1748137844864,-712.71,0.00019999,2]
[362272783,1748137844875,-712.71,0.00019999,2]
[362272784,1748137844885,-712.71,0.00019999,2]
[362272785,1748137844895,-712.71,0.00019999,2]
[362272786,1748137844905,-712.71,0.00019999,2]
[362272787,1748137844915,-712.71,0.00019999,2]
[362272788,1748137844925,-712.71,0.00019999,2]
[362272789,1748137844934,-712.71,0.00019999,2]
[362272790,1748137844944,-712.71,0.00019999,2]
[362272791,1748137844954,-712.71,0.00019999,2]
[362272792,1748137844964,-712.9033,0.00019999,2]
[362272793,1748137844974,-420.0,0.00019999,2]
[362272794,1748137844985,-476.05913178,0.00019999,2]
[362272795,1748137844995,-420.0,0.00019999,2]
[362272796,1748137845004,-420.0,0.00019999,2]
[362272797,1748137845014,-420.0,0.00019999,2]
[362272798,1748137845024,-20000.0,0.00019999,2]
[362272799,1748137845033,-531.0,0.0002,2]
[362272800,1748137845044,-559.4250461,0.0002,2]
[362272801,1748137845053,-581498.21951377,0.0002,2]
[362272802,1748137845063,-50612.29416709,0.0002,2]
[362272803,1748137845073,-4314.87098369,0.0002,2]
[362272804,1748137845082,-1049806.20778291,0.0002,2]
[362272805,1748137845092,-88865.90689493,0.0002,2]
[362272806,1748137845265,-157.09380289,0.00019896,2]
[362272807,1748137845275,-420.0,0.00019999,2]
[362272808,1748137845284,-478.08778673,0.00019999,2]
[362272809,1748137845295,-420.0,0.00019999,2]
[362272810,1748137845304,-420.0,0.00019999,2]
[362272811,1748137845315,-420.0,0.00019999,2]
[362272812,1748137845325,-420.0,0.00019999,2]
[362272813,1748137845334,-243.61689107,0.00019999,2]
[362272814,1748137845344,-133668.29327772,0.0002,2]
[362272815,1748137845355,-2537.96049489,0.0002,2]
[362272816,1748137845367,-1090.13910486,0.0002,2]
[362272817,1748137845382,-9229.02453741,0.0002,2]
[362272818,1748137846000,-8188.05021116,0.0002,2]
[362272819,1748137846197,-157.09380288,0.000199,2]
[362272820,1748137846207,-22087.46483474,0.0002,2]
[362272826,1748137984179,-509.32,0.00018047,2]
[362272827,1748137984206,-207.0,0.00018503,2]
[362272828,1748137984233,-1173.45,0.00019155,2]
[362272829,1748137984258,-1123.374333,0.00019501,2]
[362272830,1748137984283,-417.965534,0.00019599,2]
[362272831,1748137984308,-228.72735,0.000199,2]
[362272832,1748137984333,-151.0,0.00019971,2]
[362272833,1748137984358,-151.0,0.00019991,2]
[362272834,1748137984382,-151.0,0.00019994,2]
[362272835,1748137984406,-151.0,0.00019995,2]
[362272836,1748137984432,-1284.3878026,0.00019996,2]
[362272837,1748137984456,-9524.4389673,0.00019996,2]
[362272838,1748137984481,-420.0,0.00019998,2]
[362272839,1748137984506,-420.0,0.00019998,2]
[362272840,1748137984532,-420.0,0.00019998,2]
[362272841,1748137984556,-420.0,0.00019998,2]
[362272842,1748137984583,-419.50946462,0.00019998,2]
[362272843,1748137984609,-450.68,0.00019998,2]
[362272844,1748137984635,-420.0,0.00019998,2]
[362272845,1748137984662,-412.0,0.00019999,2]
[362272846,1748137984687,-420.0,0.00019999,2]
[362272847,1748137984713,-420.0,0.00019999,2]
[362272848,1748137984739,-420.0,0.00019999,2]
[362272849,1748137984765,-420.0,0.00019999,2]
[362272850,1748137984790,-420.0,0.00019999,2]
[362272851,1748137984815,-345.14654848,0.00019999,2]
[362272852,1748138023089,-151.0,0.00019992,2]
[362272853,1748138023114,-4050.1272178,0.00019996,2]
[362272854,1748138065697,-376.168981,0.00019599,2]
[362272855,1748138102955,338.552083,0.00019599,2]
[362272856,1748138142768,37.616898,0.00019527,2]
[362272858,1748138253087,311.03,0.0001919,2]
[362272860,1748138461780,65.138981,0.00015,2]
[362272861,1748138461808,184.861019,0.00015,2]
[362272862,1748138462857,191.307962,0.00017,2]
[362272863,1748138462884,108.692038,0.00017,2]
[362272864,1748138463928,267.476943,0.00019,2]
[362272865,1748138463955,82.523057,0.00019,2]
[362272866,1748138485203,150.0,0.00019,2]
[362272867,1748138495387,143.645924,0.00019,2]
[362272868,1748138495412,56.354076,0.00019,2]
[362272869,1748138526607,195.64,0.00019,2]
[362272870,1748138532028,124.174905,0.00013699,2]
[362272871,1748138532059,241.655095,0.00013699,2]
[362272873,1748138575375,303.56686306,0.00026,120]
[362272874,1748138732124,-172.97,0.00019072,2]
[362272875,1748138732145,-150.0,0.00019089,7]
[362272876,1748138732166,-1895.67036071,0.00019125,2]
[362272877,1748138847091,-2091.15701334,0.00019,2]
[362272880,1748138968771,4024.66315201,0.00025999,120]
[362272881,1748139032153,-908.84298666,0.00019,2]
[362272882,1748139032163,-914.82,0.00019053,2]
[362272883,1748139032174,-284.51963929,0.00019125,2]
[362272884,1748139032184,-1326.21,0.00019371,2]
[362272885,1748139032193,-962.383102,0.00019527,2]
[362272886,1748139032203,-304.696875,0.00019599,2]
[362272887,1748139032213,-168.87,0.00019744,2]
[362272888,1748139032224,-1200.0,0.00019799,2]
[362272889,1748139032234,-300.0,0.00019799,2]
[362272890,1748139032244,-453.54,0.000198,2]
[362272891,1748139032255,-453.54,0.000198,2]
[362272892,1748139032267,-458.56,0.000198,2]
[362272893,1748139032278,-453.54,0.000198,2]
[362272894,1748139032288,-453.54,0.000198,2]
[362272895,1748139032298,-458.56,0.000198,2]
[362272896,1748139032307,-907.08,0.000198,2]
[362272897,1748139032317,-450.32,0.000198,2]
[362272898,1748139032326,-4021.49,0.00019913,2]
[362272899,1748139032338,-157.158,0.00019913,2]
[362272900,1748139032346,-239.99147284,0.00019973,2]
[362272901,1748139032356,-207.4,0.00019984,2]
[362272902,1748139032365,-151.0,0.00019988,2]
[362272903,1748139032374,-995.21,0.00019989,2]
[362272904,1748139032384,-300.0,0.00019994,2]
[362272905,1748139032395,-212.20114473,0.00019995,2]
[362272906,1748139032405,-18.13845801,0.00019995,2]
[362273089,1748139038359,-365.03612405,0.00019995,2]
[362273090,1748139038369,-847.433,0.00019995,2]
[362273091,1748139038378,-6557.2367985,0.00019996,2]
[362273092,1748139038387,-48451.3124375,0.00019996,2]
[362273093,1748139038397,-703.8394408,0.00019996,2]
[362273094,1748139038406,-2443.6924796,0.00019996,2]
[362273095,1748139038415,-342.32506206,0.00019998,2]
[362273096,1748139038424,-420.0,0.00019998,2]
[362273097,1748139038433,-420.0,0.00019998,2]
[362273098,1748139038442,-1231.54,0.00019998,2]
[362273099,1748139038452,-420.0,0.00019998,2]
[362273100,1748139038461,-448.41026694,0.00019998,2]
[362273101,1748139038470,-579.85,0.00019998,2]
[362273102,1748139038479,-854.8,0.00019998,2]
[362273103,1748139038489,-420.0,0.00019998,2]
[362273104,1748139038499,-739.02,0.00019998,2]
[362273105,1748139038510,-420.0,0.00019998,2]
[362273106,1748139038520,-31.94557761,0.00019998,2]
[362273121,1748139040557,-388.05442239,0.00019998,2]
[362273122,1748139040567,-420.0,0.00019998,2]
[362273123,1748139040576,-158.45378528,0.00019998,2]
[362273124,1748139040586,-502.70773156,0.00019998,2]
[362273125,1748139040598,-161.45643631,0.00019998,2]
[362273126,1748139040608,-420.0,0.00019998,2]
[362273127,1748139040620,-420.0,0.00019998,2]
[362273128,1748139040630,-747.58,0.00019998,2]
[362273129,1748139040639,-420.0,0.00019998,2]
[362273130,1748139040649,-389.15632748,0.00019998,2]
[362273131,1748139040659,-420.0,0.00019998,2]
[362273132,1748139040669,-420.0,0.00019998,2]
[362273133,1748139040679,-195.0866276,0.00019998,2]
[362273134,1748139040689,-1000.0,0.00019999,2]
[362273135,1748139040699,-456.92697963,0.00019999,2]
[362273136,1748139040709,-452.03346808,0.00019999,2]
[362273137,1748139040719,-457.10535459,0.00019999,2]
[362273138,1748139040729,-451.51387955,0.00019999,2]
[362273139,1748139040738,-444.85273595,0.00019999,2]
[362273140,1748139040747,-471.90918214,0.00019999,2]
[362273141,1748139040758,-435.78064502,0.00019999,2]
[362273142,1748139040767,-439.32741525,0.00019999,2]
[362273144,1748139040777,-475.76361933,0.00019999,2]
[362273146,1748139040786,-451.14976769,0.00019999,2]
[362273147,1748139040795,-459.99679538,0.00019999,2]
[362273148,1748139040805,-448.71674003,0.00019999,2]
[362273149,1748139040814,-440.67893294,0.00019999,2]
[362273150,1748139040824,-449.22192694,0.00019999,2]
[362273152,1748139040833,-445.71164287,0.00019999,2]
[362273153,1748139040843,-445.39800979,0.00019999,2]
[362273155,1748139040855,-445.66278195,0.00019999,2]
[362273157,1748139040864,-440.30870574,0.00019999,2]
[362273159,1748139040874,-442.68128329,0.00019999,2]
[362273161,1748139040883,-453.25693464,0.00019999,2]
[362273163,1748139040892,-456.35822563,0.00019999,2]
[362273164,1748139040901,-420.0,0.00019999,2]
[362273165,1748139040910,-374.81762994,0.00019999,2]
[362273166,1748139040920,-454.04952947,0.00019999,2]
[362273167,1748139040929,-282.37917343,0.00019999,2]
[362273168,1748139040938,-453.54255522,0.00019999,2]
[362273169,1748139040947,-449.35072577,0.00019999,2]
[362273170,1748139040956,-327.33,0.00019999,2]
[362273171,1748139040966,-448.3471975,0.00019999,2]
[362273172,1748139040975,-456.4051789,0.00019999,2]
[362273173,1748139040985,-396.05099583,0.00019999,2]
[362273174,1748139040994,-420.0,0.00019999,2]
[362273175,1748139041003,-404.72930419,0.00019999,2]
[362273176,1748139041012,-489.98593264,0.00019999,2]
[362273177,1748139041022,-465.52061791,0.00019999,2]
[362273178,1748139041031,-454.65105984,0.00019999,2]
[362273179,1748139041041,-447.63598046,0.00019999,2]
[362273180,1748139041051,-451.45185265,0.00019999,2]
[362273181,1748139041060,-481.26690461,0.00019999,2]
[362273182,1748139041069,-466.33704732,0.00019999,2]
[362273183,1748139041078,-445.53664778,0.00019999,2]
[362273184,1748139041088,-484.53795268,0.00019999,2]
[362273185,1748139041100,-483.87632321,0.00019999,2]
[362273186,1748139041110,-500.0,0.00019999,2]
[362273187,1748139041119,-502.6864131,0.00019999,2]
[362273188,1748139041129,-459.82362858,0.00019999,2]
[362273189,1748139041138,-489.47373741,0.00019999,2]
[362273190,1748139041148,-486.04631295,0.00019999,2]
[362273191,1748139041159,-489.62545114,0.00019999,2]
[362273192,1748139041169,-367.9180236,0.00019999,2]
[362273193,1748139041180,-444.934333,0.00019999,2]
[362273194,1748139041189,-247.79602331,0.00019999,2]
[362273195,1748139041199,-443.85940018,0.00019999,2]
[362273196,1748139041210,-327.16325603,0.00019999,2]
[362273197,1748139041220,-454.79708608,0.00019999,2]
[362273198,1748139041229,-256.27497241,0.00019999,2]
[362273199,1748139041239,-464.79909959,0.00019999,2]
[362273200,1748139041248,-227.71509598,0.00019999,2]
[362273201,1748139041259,-432.54055651,0.00019999,2]
[362273202,1748139041269,-420.0,0.00019999,2]
[362273203,1748139041279,-515.14908913,0.00019999,2]
[362273204,1748139041289,-420.0,0.00019999,2]
[362273205,1748139041299,-420.0,0.00019999,2]
[362273206,1748139041308,-420.0,0.00019999,2]
[362273207,1748139041318,-420.0,0.00019999,2]
[362273208,1748139041327,-420.0,0.00019999,2]
[362273209,1748139041337,-420.0,0.00019999,2]
[362273210,1748139041348,-420.0,0.00019999,2]
[362273211,1748139041357,-420.0,0.00019999,2]
[362273212,1748139041367,-420.0,0.00019999,2]
[362273213,1748139041377,-420.0,0.00019999,2]
[362273214,1748139041386,-420.0,0.00019999,2]
[362273215,1748139041396,-420.0,0.00019999,2]
[362273216,1748139041407,-420.0,0.00019999,2]
[362273217,1748139041416,-420.0,0.00019999,2]
[362273218,1748139041426,-420.0,0.00019999,2]
[362273219,1748139041436,-420.0,0.00019999,2]
[362273220,1748139041445,-420.0,0.00019999,2]
[362273221,1748139041455,-420.0,0.00019999,2]
[362273222,1748139041464,-420.0,0.00019999,2]
[362273223,1748139041474,-420.0,0.00019999,2]
[362273224,1748139041484,-420.0,0.00019999,2]
[362273225,1748139041493,-420.0,0.00019999,2]
[362273226,1748139041503,-241.75913178,0.00019999,2]
[362273227,1748139041512,-420.0,0.00019999,2]
[362273228,1748139041521,-420.0,0.00019999,2]
[362273229,1748139041531,-302.68546025,0.00019999,2]
[362273230,1748139041540,-666.81,0.00019999,2]
[362273231,1748139041551,-666.81,0.00019999,2]
[362273232,1748139041560,-666.81,0.00019999,2]
[362273233,1748139041570,-666.81,0.00019999,2]
[362273234,1748139041580,-666.81,0.00019999,2]
[362273235,1748139041589,-666.81,0.00019999,2]
[362273236,1748139041601,-666.81,0.00019999,2]
[362273237,1748139041610,-666.81,0.00019999,2]
[362273238,1748139041620,-666.81,0.00019999,2]
[362273239,1748139041634,-666.81,0.00019999,2]
[362273240,1748139041643,-666.81,0.00019999,2]
[362273241,1748139041653,-666.81,0.00019999,2]
[362273242,1748139041662,-666.81,0.00019999,2]
[362273243,1748139041673,-666.81,0.00019999,2]
[362273244,1748139041682,-666.81,0.00019999,2]
[362273245,1748139041692,-666.81,0.00019999,2]
[362273246,1748139041703,-666.81,0.00019999,2]
[362273247,1748139041712,-666.81,0.00019999,2]
[362273248,1748139041722,-666.81,0.00019999,2]
[362273249,1748139041731,-666.81,0.00019999,2]
[362273250,1748139041741,-666.81,0.00019999,2]
[362273251,1748139041750,-666.81,0.00019999,2]
[362273252,1748139041760,-666.81,0.00019999,2]
[362273253,1748139041770,-666.93,0.00019999,2]
[362273254,1748139041780,-420.0,0.00019999,2]
[362273255,1748139041790,-420.0,0.00019999,2]
[362273256,1748139041800,-420.0,0.00019999,2]
[362273257,1748139041809,-420.0,0.00019999,2]
[362273258,1748139041819,-420.0,0.00019999,2]
[362273259,1748139041828,-420.0,0.00019999,2]
[362273260,1748139041838,-420.0,0.00019999,2]
[362273261,1748139041850,-420.0,0.00019999,2]
[362273262,1748139041860,-420.0,0.00019999,2]
[362273263,1748139041870,-568.06932626,0.00019999,2]
[362273264,1748139041879,-466.53639683,0.00019999,2]
[362273265,1748139041888,-540.73113365,0.00019999,2]
[362273266,1748139041898,-1852.14,0.00019999,2]
[362273267,1748139041907,-1852.14,0.00019999,2]
[362273268,1748139041917,-1852.14,0.00019999,2]
[362273269,1748139041926,-1852.14,0.00019999,2]
[362273270,1748139041935,-1852.14,0.00019999,2]
[362273271,1748139041945,-1852.14,0.00019999,2]
[362273272,1748139041954,-1852.14,0.00019999,2]
[362273273,1748139041963,-1852.14,0.00019999,2]
[362273274,1748139041972,-1852.14,0.00019999,2]
[362273275,1748139041981,-1852.14,0.00019999,2]
[362273276,1748139041990,-1852.14,0.00019999,2]
[362273277,1748139042000,-1852.14,0.00019999,2]
[362273278,1748139042010,-1852.14,0.00019999,2]
[362273279,1748139042019,-1852.14,0.00019999,2]
[362273280,1748139042029,-1852.14,0.00019999,2]
[362273281,1748139042038,-1852.14,0.00019999,2]
[362273282,1748139042047,-1852.14,0.00019999,2]
[362273283,1748139042056,-1852.14,0.00019999,2]
[362273284,1748139042065,-1852.14,0.00019999,2]
[362273285,1748139042075,-1852.14,0.00019999,2]
[362273286,1748139042084,-1852.14,0.00019999,2]
[362273287,1748139042093,-1852.14,0.00019999,2]
[362273288,1748139042105,-1852.14,0.00019999,2]
[362273289,1748139042114,-1852.21615828,0.00019999,2]
[362273290,1748139042123,-420.0,0.00019999,2]
[362273291,1748139042133,-420.0,0.00019999,2]
[362273292,1748139042142,-420.0,0.00019999,2]
[362273293,1748139042151,-420.0,0.00019999,2]
[362273294,1748139042161,-420.0,0.00019999,2]
[362273295,1748139042170,-420.0,0.00019999,2]
[362273296,1748139042179,-370.25,0.00019999,2]
[362273297,1748139042189,-519.4,0.00019999,2]
[362273298,1748139042198,-519.4,0.00019999,2]
[362273299,1748139042207,-519.4,0.00019999,2]
[362273300,1748139042216,-519.4,0.00019999,2]
[362273301,1748139042226,-519.4,0.00019999,2]
[362273302,1748139042235,-519.4,0.00019999,2]
[362273303,1748139042244,-519.4,0.00019999,2]
[362273304,1748139042253,-519.4,0.00019999,2]
[362273305,1748139042262,-519.4,0.00019999,2]
[362273306,1748139042271,-519.4,0.00019999,2]
[362273307,1748139042280,-519.4,0.00019999,2]
[362273308,1748139042289,-519.4,0.00019999,2]
[362273309,1748139042299,-519.4,0.00019999,2]
[362273310,1748139042308,-519.4,0.00019999,2]
[362273311,1748139042317,-519.4,0.00019999,2]
[362273312,1748139042326,-420.0,0.00019999,2]
[362273313,1748139042335,-519.4,0.00019999,2]
[362273314,1748139042348,-184.22914876,0.00019999,2]
[362273315,1748139042358,-519.4,0.00019999,2]
[362273316,1748139042367,-519.4,0.00019999,2]
[362273317,1748139042376,-519.4,0.00019999,2]
[362273318,1748139042385,-519.4,0.00019999,2]
[362273319,1748139042394,-519.4,0.00019999,2]
[362273320,1748139042403,-519.4,0.00019999,2]
[362273321,1748139042413,-519.4,0.00019999,2]
[362273322,1748139042422,-519.56315656,0.00019999,2]
[362273323,1748139042432,-420.0,0.00019999,2]
[362273324,1748139042442,-420.0,0.00019999,2]
[362273325,1748139042451,-420.0,0.00019999,2]
[362273326,1748139042462,-420.0,0.00019999,2]
[362273327,1748139042471,-420.0,0.00019999,2]
[362273328,1748139042481,-420.0,0.00019999,2]
[362273329,1748139042490,-420.0,0.00019999,2]
[362273330,1748139042500,-420.0,0.00019999,2]
[362273331,1748139042512,-420.0,0.00019999,2]
[362273332,1748139042522,-420.0,0.00019999,2]
[362273333,1748139042532,-420.0,0.00019999,2]
[362273334,1748139042541,-420.0,0.00019999,2]
[362273335,1748139042551,-420.0,0.00019999,2]
[362273336,1748139042561,-420.0,0.00019999,2]
[362273337,1748139042570,-420.0,0.00019999,2]
[362273338,1748139042580,-420.0,0.00019999,2]
[362273339,1748139042590,-420.0,0.00019999,2]
[362273340,1748139042601,-420.0,0.00019999,2]
[362273341,1748139042611,-420.0,0.00019999,2]
[362273342,1748139042623,-420.0,0.00019999,2]
[362273343,1748139042634,-420.0,0.00019999,2]
[362273344,1748139042643,-420.0,0.00019999,2]
[362273345,1748139042653,-426.7495566,0.00019999,2]
[362273346,1748139042664,-420.0,0.00019999,2]
[362273347,1748139042674,-420.0,0.00019999,2]
[362273348,1748139042685,-420.0,0.00019999,2]
[362273349,1748139042695,-420.0,0.00019999,2]
[362273350,1748139042706,-420.0,0.00019999,2]
[362273351,1748139042716,-420.0,0.00019999,2]
[362273352,1748139042726,-492.68394588,0.00019999,2]
[362273353,1748139042736,-420.0,0.00019999,2]
[362273354,1748139042745,-420.0,0.00019999,2]
[362273355,1748139042755,-420.0,0.00019999,2]
[362273356,1748139042765,-420.0,0.00019999,2]
[362273357,1748139042775,-420.0,0.00019999,2]
[362273358,1748139042784,-420.0,0.00019999,2]
[362273359,1748139042794,-233.1708273,0.00019999,2]
[362273360,1748139042804,-1966.46,0.00019999,2]
[362273361,1748139042814,-1966.46,0.00019999,2]
[362273362,1748139042823,-1966.46,0.00019999,2]
[362273363,1748139042833,-1966.46,0.00019999,2]
[362273364,1748139042843,-1966.46,0.00019999,2]
[362273365,1748139042855,-1966.46,0.00019999,2]
[362273366,1748139042865,-1966.46,0.00019999,2]
[362273367,1748139042874,-1966.46,0.00019999,2]
[362273368,1748139042884,-1966.46,0.00019999,2]
[362273369,1748139042894,-1966.46,0.00019999,2]
[362273370,1748139042904,-1966.46,0.00019999,2]
[362273371,1748139042913,-1966.46,0.00019999,2]
[362273372,1748139042923,-1966.46,0.00019999,2]
[362273373,1748139042932,-1966.46,0.00019999,2]
[362273374,1748139042941,-1966.46,0.00019999,2]
[362273375,1748139042951,-1966.46,0.00019999,2]
[362273376,1748139042960,-1966.46,0.00019999,2]
[362273377,1748139042969,-1966.46,0.00019999,2]
[362273378,1748139042979,-1966.46,0.00019999,2]
[362273379,1748139042988,-1966.46,0.00019999,2]
[362273380,1748139042997,-1966.46,0.00019999,2]
[362273381,1748139043007,-1966.46,0.00019999,2]
[362273382,1748139043017,-1966.46,0.00019999,2]
[362273383,1748139043027,-1966.49605792,0.00019999,2]
[362273384,1748139043037,-54016.07146971,0.00019999,2]
[362273385,1748139043047,-150.0,0.00019999,2]
[362273386,1748139043056,-445.20227112,0.00019999,2]
[362273387,1748139043068,-1231.54,0.00019999,2]
[362273389,1748139043077,-1231.54,0.00019999,2]
[362273390,1748139043086,-1231.54,0.00019999,2]
[362273391,1748139043098,-1231.54,0.00019999,2]
[362273392,1748139043107,-1231.54,0.00019999,2]
[362273393,1748139043116,-1231.54,0.00019999,2]
[362273394,1748139043125,-1231.54,0.00019999,2]
[362273395,1748139043134,-1231.54,0.00019999,2]
[362273396,1748139043143,-1231.54,0.00019999,2]
[362273397,1748139043152,-1231.54,0.00019999,2]
[362273398,1748139043161,-1231.54,0.00019999,2]
[362273399,1748139043171,-1231.54,0.00019999,2]
[362273401,1748139043180,-1231.54,0.00019999,2]
[362273402,1748139043189,-1231.54,0.00019999,2]
[362273403,1748139043199,-1231.54,0.00019999,2]
[362273404,1748139043208,-1231.54,0.00019999,2]
[362273405,1748139043217,-1231.54,0.00019999,2]
[362273406,1748139043226,-1231.54,0.00019999,2]
[362273407,1748139043236,-1231.54,0.00019999,2]
[362273408,1748139043245,-1231.54,0.00019999,2]